Cogmind - Beta 11.1 @@@ ROGUE MODE // 2022.06.03 @ 14:19:26 Player: RNGesus Result: Destroyed by D-53 Grenadier with Mini Grenade Launcher Performance ------------- Evolutions (0) 0 Regions Visited (4) 800 Robots Destroyed (38) 190 Value Destroyed (739) 739 Prototype IDs (26) 520 Alien Tech Used (0) 0 Bonus (339) 339 TOTAL SCORE: 2588 Bonus ------- Follower Combat Kills 60 Aligned with FarCom 300 Friendly Fire -21 Cogmind --------- Core Integrity 0/250 Matter 258/300 Energy 100/100 System Corruption 5% Temperature Cool (0) Movement Core (450) Ox8 Location -9/Mines Parts ------- > --- POWER (1) -------- (None) > --- PROPULSION (2) --- (None) > --- UTILITY (2) ------ Large Storage Unit > --- WEAPON (2) ------- Heavy Assault Rifle Grenade Launcher > --- INVENTORY (15) --- Faulty Cooled Ion Engine Advanced Targeting Computer Hardlight Generator Hacking Suite Hacking Suite Light Assault Rifle Heavy Assault Rifle Heavy Assault Rifle Heavy Assault Rifle Minigun Grenade Launcher Grenade Launcher Peak State ------------ > --- POWER ------------ Ion Engine > --- PROPULSION ------- Light Treads Advanced Treads > --- UTILITY ---------- Improved Heat Sink Large Storage Unit > --- WEAPON ----------- Heavy Assault Rifle Heavy Assault Rifle > --- INVENTORY -------- Light Ion Engine Cooled Ion Engine Light Treads Advanced Targeting Computer Hardlight Generator Hacking Suite Hacking Suite Medium Laser Light Assault Rifle Heavy Assault Rifle Heavy Assault Rifle Minigun Grenade Launcher Grenade Launcher Grenade Launcher [Rating: 15] Favorites ----------- Power Ion Engine Engine Ion Engine Propulsion Light Treads Treads Light Treads Utility Large Storage Unit Device Improved Heat Sink Storage Large Storage Unit Protection Light Armor Plating Weapon Heavy Assault Rifle Energy Gun Medium Laser Ballistic Gun Heavy Assault Rifle Launcher Grenade Launcher Build | -11 -10 -10 -10 -9 ------- Run | Scr Mat Min Exi Min Slots Evolved . | . . . . . Power . | . . . . . Propulsion . | . . . . . Utility . | . . . . . Weapon . | . . . . . Parts Attached 26 | 7 11 2 2 4 Power 3 | 2 . . . 1 Engine 3 | 2 . . . 1 Core . | . . . . . Reactor . | . . . . . Propulsion 3 | 2 . 1 . . Treads 3 | 2 . 1 . . Leg . | . . . . . Wheel . | . . . . . Hover . | . . . . . Flight . | . . . . . Utility 4 | 1 2 1 . . Device 1 | . . 1 . . Storage 2 | 1 1 . . . Processor . | . . . . . Hackware . | . . . . . Protection 1 | . 1 . . . Artifact . | . . . . . Weapon 16 | 2 9 . 2 3 Energy Gun 3 | 1 2 . . . Energy Cannon . | . . . . . Ballistic Gun 7 | 1 3 . 2 1 Ballistic Cannon . | . . . . . Launcher 6 | . 4 . . 2 Special Weapon . | . . . . . Impact Weapon . | . . . . . Slashing Weapon . | . . . . . Piercing Weapon . | . . . . . Special Melee Weapon . | . . . . . Unidentified Prototypes . | . . . . . Parts Lost 6 | . 1 . . 5 Power 2 | . . . . 2 Propulsion 2 | . . . . 2 Utility 2 | . 1 . . 1 Weapon . | . . . . . Highest Loss Streak 4 | . 1 . . 4 To Critical Strikes . | . . . . . Average Slot Usage (%) 91 | . 87 97 80 97 Engine 13 | . 14 14 14 12 Treads 27 | . 28 28 28 27 Device 8 | . . 11 14 13 Storage 14 | . 14 14 14 14 Energy Gun 2 | . 6 . . . Ballistic Gun 22 | . 21 28 8 26 Naked Turns . | . . . . . Heaviest Build 34 | 13 34 32 32 32 Greatest Support 42 | 40 40 42 42 42 Greatest Overweight (x) 1 | . . . . 1 Average Overweight (x) . | . . . . . Largest Inventory Capacity 15 | 8 15 15 15 15 Average Capacity 14 | 7 13 15 15 15 Most Carried 15 | 2 11 15 15 14 Average Carried 11 | 1 7 13 14 12 Final Capacity 15 | 8 15 15 15 15 Final Carried 14 | 2 11 14 13 12 Class Distribution -------------------- 100% | Mutant Dominant Class ---------------- Mutant | -10/Materials Mutant | -10/Mines Mutant | -10/Exiles Mutant | -9/Mines Resources | -11 -10 -10 -10 -9 ----------- Run | Scr Mat Min Exi Min Matter Collected 873 | 148 386 240 . 99 Remotely . | . . . . . Salvage Created 956 | . 539 326 . 91 Parts 77 | . 47 21 . 9 Haulers Intercepted . | . . . . . Recyclers Shooed 1 | . 1 . . . Parts Field Recycled . | . . . . . Retrieved Matter . | . . . . . Parts Self-Destructed . | . . . . . Prevented . | . . . . . Kills | -11 -10 -10 -10 -9 ------- Run | Scr Mat Min Exi Min Combat Hostiles Destroyed 29 | . 13 5 . 11 Guns 11 | . 6 5 . . AOE 18 | . 7 . . 11 Classes Destroyed 9 | . 7 1 . 1 Worker 3 | . 1 1 . 1 Builder 5 | . 3 2 . . Tunneler 2 | . . 2 . . Recycler 2 | . 2 . . . Operator 3 | . 3 . . . Watcher 1 | . 1 . . . Swarmer 9 | . 5 . . 4 Grunt 13 | . 8 5 . . Assembled 7 | . . . . 7 Best Kill Streak 8 | . 6 2 . 8 Combat Bots Only 7 | . 3 2 . 7 Max Kills in Single Turn 4 | . 4 1 . 3 Gunslinging . | . . . . . Exploded 3 | . 2 . . 3 Melee . | . . . . . Uniques/NPCs Destroyed . | . . . . . Combat | -11 -10 -10 -10 -9 -------- Run | Scr Mat Min Exi Min Damage Taken 1323 | . 461 236 . 626 Core 287 | . 90 35 . 162 Absorbed by Shields . | . . . . . Core Remaining (%) 100 | 100 . . . . Volleys Fired 77 | . 46 22 2 7 Largest 2 | . 2 2 2 2 Hottest 70 | . 70 46 46 46 Shots Fired 140 | . 84 44 4 8 Gun 126 | . 76 44 4 2 Cannon . | . . . . . Launcher 14 | . 8 . . 6 Special . | . . . . . Kinetic 106 | . 56 44 4 2 Thermal 16 | . 16 . . . Explosive 14 | . 8 . . 6 Electromagnetic 4 | . 4 . . . Robot Hit Streak 17 | . 5 17 1 1 Robot Miss Streak 5 | . 5 4 1 4 Penetration Max . | . . . . . Secondary Targets 1 | . . 1 . . Max Gunslinging Chain 1 | . . 1 . . Shots Hit Robots 76 | . 41 32 1 2 Core Hits 60 | . 32 12 . 16 Critical Kills 2 | . 2 . . . Critical Parts Destroyed . | . . . . . Critical Strikes 2 | . 2 . . . Destroy 2 | . 2 . . . Melee Attacks . | . . . . . Impact . | . . . . . Slashing . | . . . . . Piercing . | . . . . . Sneak Attacks . | . . . . . Combat Hostiles . | . . . . . Follow-up Attacks . | . . . . . Damage Inflicted 2223 | . 1094 490 21 618 Guns 980 | . 453 490 21 16 Cannons . | . . . . . Explosions 1243 | . 641 . . 602 Melee . | . . . . . Ramming . | . . . . . Kinetic 826 | . 299 490 21 16 Thermal 114 | . 114 . . . Explosive 1243 | . 641 . . 602 Electromagnetic 40 | . 40 . . . Impact . | . . . . . Slashing . | . . . . . Piercing . | . . . . . Highest Corruption 5 | . 2 2 2 5 Average Corruption 2 | . 2 2 2 2 Corruption Purged . | . . . . . Corruption Blocked . | . . . . . Effects 23 | . 7 9 5 2 Message Errors 3 | . . 2 1 . Matter Fused 9 | . 2 4 3 . Heat Flow Errors 3 | . 1 1 . 1 Energy Discharges 2 | . 1 . 1 . Data Loss (minor) 2 | . . 2 . . Data Loss (major) 1 | . . . . 1 Misfires 1 | . 1 . . . Alerts 1 | . 1 . . . Weapon Failures 1 | . 1 . . . Overload Shots . | . . . . . Overflow Damage 26 | . 17 . . 9 Projectiles . | . . . . . Explosions 26 | . 17 . . 9 Melee . | . . . . . Knockbacks . | . . . . . Impact . | . . . . . Kinetic . | . . . . . Secondary . | . . . . . Self-Inflicted Damage 204 | . 93 . . 111 Shots 7 | . 3 . . 4 Rammed . | . . . . . Targets Rammed . | . . . . . Kicked . | . . . . . Crushed . | . . . . . Highest Temperature 251 | . 194 251 . 91 Average Temperature 62 | . 59 85 . 52 Received Heat Transfer 237 | . 120 117 . . Siege Activations . | . . . . . Robots Corrupted . | . . . . . Combat Hostiles . | . . . . . Parts Fried . | . . . . . Impact Corruptions . | . . . . . Robots Melted . | . . . . . Combat Hostiles . | . . . . . Parts Melted 2 | . 1 1 . . Heat Transferred 333 | . 333 . . . Parts Sabotaged . | . . . . . Parts Stolen . | . . . . . Parts Stripped . | . . . . . Power Chain Reactions . | . . . . . Missiles Intercepted . | . . . . . Alert | -11 -10 -10 -10 -9 ------- Run | Scr Mat Min Exi Min Peak Influence 419 | . 419 316 . 219 Initial 130 | . . 130 . . Average 169 | . 205 161 . 97 Maximum Alert Level 2 | . 2 1 . 1 Low Security (%) 64 | 100 54 64 . 97 Level 1 32 | . 38 35 . 2 Level 2 2 | . 7 . . . Level 3 . | . . . . . Level 4 . | . . . . . Level 5 . | . . . . . High Security . | . . . . . Max Security . | . . . . . Squads Dispatched 6 | . 5 1 . . Investigation 3 | . 2 1 . . Extermination . | . . . . . Reinforcement 3 | . 3 . . . Assault . | . . . . . Garrison . | . . . . . Intercept . | . . . . . Searches Triggered . | . . . . . Construction Impeded . | . . . . . Haulers Reinforced . | . . . . . Active Scanning Responses . | . . . . . Cargo Convoy Interrupts . | . . . . . Stealth | -11 -10 -10 -10 -9 --------- Run | Scr Mat Min Exi Min Distress Signals . | . . . . . Communications Jammed . | . . . . . Distress Signals . | . . . . . Times Spotted 48 | . 28 5 . 15 Peak Tracking Total 9 | . 4 2 9 9 Tactical Retreats 5 | . 5 . . . Traps | -11 -10 -10 -10 -9 ------- Run | Scr Mat Min Exi Min Traps Triggered 1 | . 1 . . . Indirectly . | . . . . . Trap Hack Attempts . | . . . . . Triggered . | . . . . . Disarmed . | . . . . . Reprogrammed . | . . . . . Reused . | . . . . . Traps Extracted . | . . . . . Installed . | . . . . . Triggered . | . . . . . Machines | -11 -10 -10 -10 -9 ---------- Run | Scr Mat Min Exi Min Machines Disabled 6 | . 1 2 1 2 Max in Single Turn 2 | . 1 2 1 1 Machines Sabotaged . | . . . . . Garrisons Compromised . | . . . . . Overloaded Fab Kills . | . . . . . Hacking | -11 -10 -10 -10 -9 --------- Run | Scr Mat Min Exi Min Machines Accessed 8 | . 4 2 2 . Terminals 2 | . 2 . . . Fabricators . | . . . . . Repair Stations . | . . . . . Recycling Units 2 | . 2 . . . Scanalyzers . | . . . . . Garrison Access . | . . . . . Total Hacks 16 | . 9 2 5 . Successful 12 | . 5 2 5 . Failed 4 | . 4 . . . Catastrophic 1 | . 1 . . . Database Lockouts . | . . . . . Manual 7 | . 6 . 1 . Terminals 7 | . 7 . . . Fabricators . | . . . . . Repair Stations . | . . . . . Recycling Units 2 | . 2 . . . Scanalyzers . | . . . . . Garrison Access . | . . . . . Terminal Hacks 9 | . 2 2 5 . Record 4 | . . . 4 . Part Schematic 1 | . 1 . . . Prototype ID Bank 1 | . 1 . . . Open Door 2 | . . 2 . . EX-Prototype ID Bank 1 | . . . 1 . Fabricator Hacks . | . . . . . Repair Station Hacks . | . . . . . Recycling Unit Hacks . | . . . . . Scanalyzer . | . . . . . Garrison Access Hacks . | . . . . . Unauthorized Hacks 3 | . 3 . . . Terminals 1 | . 1 . . . Operators 1 | . 1 . . . Fabricators . | . . . . . Repair Stations . | . . . . . Recycling Units 2 | . 2 . . . Tunnel 2 | . 2 . . . Scanalyzers . | . . . . . Garrison Access . | . . . . . Data Cores Recovered . | . . . . . Used . | . . . . . Hacking Detections 2 | . 2 . . . Full Trace Events . | . . . . . Feedback Events . | . . . . . Feedback Blocked . | . . . . . Robot Schematics Acquired . | . . . . . Robots Built . | . . . . . Authchips . | . . . . . Time . | . . . . . Total Robot Build Rating . | . . . . . Part Schematics Acquired 1 | . 1 . . . Parts Built . | . . . . . Authchips . | . . . . . Time . | . . . . . Total Part Build Rating . | . . . . . Parts Repaired . | . . . . . Time . | . . . . . Parts Recycled . | . . . . . Recycled Matter . | . . . . . Retrieved Matter . | . . . . . Retrieved Components . | . . . . . Parts Scanalyzed . | . . . . . Part Schematics Acquired . | . . . . . Parts Damaged . | . . . . . Bothacking | -11 -10 -10 -10 -9 ------------ Run | Scr Mat Min Exi Min Used RIF Installer . | . . . . . Robots Hacked . | . . . . . Non-combat . | . . . . . Combat . | . . . . . Robot Hacks Applied . | . . . . . Relay Couplers Released . | . . . . . Fabnet Peak Effective % . | . . . . . Robots Rewired . | . . . . . Allies Hacked . | . . . . . Hacks Repelled . | . . . . . Allies | -11 -10 -10 -10 -9 -------- Run | Scr Mat Min Exi Min Total Allies 2 | . . 2 . . Largest Group 2 | . . 2 2 . Highest-Rated Group 45 | . . 45 45 . Highest-Rated Ally 31 | . . 31 31 . Total Orders . | . . . . . Ally Attacks 19 | . . 19 . . Total Damage 338 | . . 338 . . Kills 2 | . . 2 . . Allies Corrupted . | . . . . . Allies Melted . | . . . . . Intel | -11 -10 -10 -10 -9 ------- Run | Scr Mat Min Exi Min Robot Analysis Total . | . . . . . Derelict Logs Recovered 1 | . . 1 . . Drone Launches . | . . . . . Drone Recoveries . | . . . . . Exploration | -11 -10 -10 -10 -9 ------------- Run | Scr Mat Min Exi Min Turns Passed 2870 | 77 1022 1115 446 210 Spaces Moved 1652 | 43 530 670 288 121 Core 2 | 2 . . . . Treads 1650 | 41 530 670 288 121 Legs . | . . . . . Wheels . | . . . . . Hover . | . . . . . Flight . | . . . . . Fastest Speed 50 | 50 160 152 152 152 Average Speed 155 | 154 160 153 152 153 Slowest Speed 225 | 160 160 160 152 225 Overloaded Moves . | . . . . . Propulsion Burnouts . | . . . . . Robots Hopped . | . . . . . Cave-ins Triggered . | . . . . . Exploration Rate (%) 56 | 4 86 98 61 31 Regions Visited 4 Branch Regions 3 Pre-discovered Areas 4 | . 2 1 1 . Known Exits Taken . | . . . . . Unknown Exits Taken 4 | 1 1 1 1 . Scrap Searched 3 | . . 1 . 2 Spaces Dug 8 | . . . . 8 Terrain Destroyed 71 | . 26 . . 45 Melee . | . . . . . Projectile . | . . . . . AOE 71 | . 26 . . 45 Terrain Rammed . | . . . . . Walls Destroyed . | . . . . . Machines Disabled . | . . . . . Actions | -11 -10 -10 -10 -9 --------- Run | Scr Mat Min Exi Min Total 1817 | 50 621 715 294 137 Wait 42 | . 21 18 . 3 Move 1648 | 42 529 669 287 121 Hop . | . . . . . Pick Up 15 | 1 10 3 . 1 Fast Attach 9 | 6 2 1 . . Attach 4 | . 1 . 2 1 Detach 4 | . 2 . 2 . Swap 13 | 1 8 1 . 3 Drop 5 | . 2 1 1 1 Fire 77 | . 46 22 2 7 Melee . | . . . . . Ram . | . . . . . Kick . | . . . . . Crush . | . . . . . Escape Stasis . | . . . . . Rewire . | . . . . . Trap . | . . . . . Miscellaneous . | . . . . . Route ------- -11/Scrapyard -10/Materials (discovered 4 exits: [*Mat x3] / *Min) -10/Mines (discovered 3 exits: [*Mat x2] / *Exi) -10/Exiles -9/Mines (discovered 1 exit: [*Mat]) History --------- Turn | Location | Event 48 | -11/Scrapyard | Discovered new exit (range 15) 78 | -11/Scrapyard | Entered Materials 106 | -10/Materials | Discovered new exit (range 16) 190 | -10/Materials | Discovered new exit (range 9) 328 | -10/Materials | Build established: Mutant 516 | -10/Materials | Discovered new exit (range 10) 740 | -10/Materials | Discovered new exit (range 8) 1100 | -10/Materials | Entered Mines 1143 | -10/Mines | Learned location of Zion (-7) 1237 | -10/Mines | Met a Derelict shopkeep closing up shop 1515 | -10/Mines | A weapon hastily lodged in a ceiling crevice suddenly fell to the ground 1691 | -10/Mines | Discovered new exit (range 13) 1713 | -10/Mines | Met a Derelict who couldn't figure out how to use a Trap Extractor 2065 | -10/Mines | Discovered new exit (range 11) 2205 | -10/Mines | Deemed a non-threat by the Exiles lab entrance 2205 | -10/Mines | Discovered new exit (range 5) 2215 | -10/Mines | Entered Exiles 2215 | -10/Exiles | Accompanied by 2 allies 2245 | -10/Exiles | Led the pair of lost Derelicts to a safe place 2257 | -10/Exiles | Met 8R-AWN 2279 | -10/Exiles | Met EX-HEX 2352 | -10/Exiles | Met EX-DEC 2392 | -10/Exiles | Met EX-BIN 2409 | -10/Exiles | Aligned with FarCom system 2410 | -10/Exiles | Given EX-Vault access code 2447 | -10/Exiles | Opened EX-Vault 2478 | -10/Exiles | Warned to stay clear of 0b10 Research branches 2582 | -10/Exiles | Discovered new exit (range 12) 2624 | -10/Exiles | Attacked by the Exiles 2661 | -10/Exiles | Entered Mines 2669 | -9/Mines | Met a Derelict bent on vengeance 2785 | -9/Mines | Discovered new exit (range 6) 2848 | -9/Mines | Assembled infested the area 2860 | -9/Mines | Core integrity fell below 50% 2870 | -9/Mines | Core integrity fell below 20% 2871 | -9/Mines | Destroyed by D-53 Grenadier with Mini Grenade Launcher Last Messages --------------- 02858_ as-27049 destroyed. 02860_ U-05 Engineer lays Concrete. 02862_ Lgt. Treads destroyed. 02862_ as-58506 destroyed. 02862_ as-99242 destroyed. 02862_ as-41229 destroyed. 02863_ U-05 Engineer lays Concrete. 02863_ K-01 Serf collects debris. 02864_ as-64475 destroyed. 02864_ U-05 Engineer lays Concrete. 02865_ U-05 Engineer builds a Wall. 02867_ Imp. Heat Sink destroyed. 02867_ System corrupted by crushing effect (+3). 02867_ C-30 ARC bursts open, deploying its payload. 02867_ D-53 Grenadier unfolds itself. 02867_ as-70061 destroyed. 02867_ Lgt. Ion Engine destroyed. 02869_ The unstable cave ceiling collapses. 02870_ U-05 Engineer lays Concrete. 02871_ Adv. Treads destroyed. Map ----- +----------------------------------------------------+ | ?????????????????????????????????????????????????? | | ?????????????????????????????????????????????????? | | ?????????????????????????????????????????????????? | | ?????????????????????????????????????????????????? | | ?????????????????????????????????????????????????? | | ?????????????????????????????????????????????????? | | ?????????????????????????????????????????????????? | | ?????????????????????????????????????????????????? | | ?????????????????????????????????????????????????? | | ?????????????????????????????????????????????????? | | ?????????????????????????????????????????????????? | | ?????????????????????????????????????????????????? | | ?????????????????????????????????????????????????? | | ?????????????????????????????????????????????????? | | #############????????????????????????????????????? | | #????????????????????????????????????? | | ##############???????????????????????? | | #??????????#????????????? | | ############ #????????? ###??????????? | | """ #??????????# #???????? $ ???????????? | | """ < #??????????# #???????# #????????????? | | """ #??????????# ####?### #????????????? | | #?????????##d ## #????????????? | | ## ##########?????????# % ku##????????????? | | ?# #??????????????????# d ##???????????? | | ?# #?????????????????## @ $ #???????????? | | ?# #?????????????????# #???????????? | | ?# #?????????????????## % #??????????? | | ?# #??????????????????# a #??????????? | | ?# #??????????????????# #??????????? | | ?# #??????????????????## ### ????????? | | ?# #???????????????????## ??## #??????? | | ?# #???????????????????? ????### #??????? | | ?# #???????????????????? ##???????# ?????????? | | ## #???????????????????? ##?????????? ?????????? | | #??????????????????? ##?????????????????????? | | ####??????????????????? #???????????????????????? | | ??????????????????????? ????????????????????????? | | ??????????????????????? ????????????????????????? | | ?????????????????????? ????????????????????????? | | ?????????????????????? ????????????????????????? | | ?????????????????????????????????????????????????? | | ?????????????????????????????????????????????????? | | ####?????????????????????????????????????????????? | | #?????????????????????????????????????????????? | | " #?????????????????????????????????????????????? | | "" #?????????????????????????????????????????????? | | "" #?????????????????????????????????????????????? | | #?????????????????????????????????????????????? | | #?????????????????????????????????????????????? | +----------------------------------------------------+ Best States ------------- Heat Dissipation 39 Energy Generation 10 Energy Capacity 250 Matter Stores 300 Matter Capacity 300 Sight Range 16 Terrain Scan Density 10 Armor Coverage 150 Evasion (%) 40 Recoil Reduction 2 Item Schematics ----------------- Huge Storage Unit | -10/Materials | Hacked Robot Schematics ------------------ None Fabricated ------------ Nothing Alien Tech Used ----------------- None Achievements -------------- None Challenges ------------ None Game ------ Seed TachyonConcussiveStripper Manual? 0 Play Time 00:12:25 Cumulative 406.3 hours Start 2022.06.02 @ 19:18:05 End 2022.06.03 @ 14:19:26 Sessions 3 Manual Loads 0 Difficulty Rogue Special Mode None Game No. 543 Rogue 543 Adventurer 0 Explorer 0 Win Type - Total 9 Types 6/1/1/1/0/0/0/0/0 Lore% 89 Gallery% 90 Achievement% 75 Wizard Run 0 Options --------- ASCII 0 Keyboard 1 Movement Numpad Keybinds 0 Fullscreen 2 Font 24/Smallcaps Map View 76x50 Tactical HUD 1 Map Filters NONE Filters NONE Steam 1 RUN: 36e24ac4-6361-4ba1-8412-1cf4f0fbe957